[Event "*** Titled Tuesday 3|2 Blitz"]
[Site "Chess.com"]
[Date "2016.10.04"]
[Round "6"]
[White "Joshukid"]
[Black "michaelk123"]
[Result "1-0"]
[WhiteElo "2369"]
[BlackElo "2231"]
[TimeControl "180+2"]
[EndTime "18:17:28 PDT"]
[Termination "Joshukid won on time"]

1. d4 {[%clk 0:02:55.6]} 1... Nf6 {[%clk 0:03:00.6]} 2. c4 {[%clk 0:02:52.9]}
2... g6 {[%clk 0:03:01.5]} 3. Nc3 {[%clk 0:02:52.5]} 3... d5 {[%clk 0:03:01.6]}
4. Nf3 {[%clk 0:02:53]} 4... Bg7 {[%clk 0:03:02.2]} 5. Bg5 {[%clk 0:02:52.4]}
5... Ne4 {[%clk 0:03:02.6]} 6. Bh4 {[%clk 0:02:52.6]} 6... Nxc3 {[%clk
0:02:55.7]} 7. bxc3 {[%clk 0:02:51.3]} 7... dxc4 {[%clk 0:02:57]} 8. e3 {[%clk
0:02:48.1]} 8... Be6 {[%clk 0:02:51.4]} 9. Qb1 {[%clk 0:02:47.1]} 9... Qd5
{[%clk 0:02:42.7]} 10. Be2 {[%clk 0:02:45.3]} 10... Bf5 {[%clk 0:02:36]} 11. Qb4
{[%clk 0:02:40.3]} 11... c5 {[%clk 0:02:26.7]} 12. Qxc4 {[%clk 0:02:34.4]} 12...
Qxc4 {[%clk 0:02:09.9]} 13. Bxc4 {[%clk 0:02:36.3]} 13... Be4 {[%clk 0:01:55.5]}
14. Be2 {[%clk 0:02:28.3]} 14... Nc6 {[%clk 0:01:51.1]} 15. O-O {[%clk
0:02:29.2]} 15... cxd4 {[%clk 0:01:17.1]} 16. cxd4 {[%clk 0:02:22.9]} 16... e5
{[%clk 0:01:17.8]} 17. dxe5 {[%clk 0:02:22.4]} 17... O-O {[%clk 0:01:09.7]} 18.
Bf6 {[%clk 0:02:21.2]} 18... Rfe8 {[%clk 0:01:08.1]} 19. Nd2 {[%clk 0:02:14.9]}
19... Bf5 {[%clk 0:00:40.1]} 20. Bxg7 {[%clk 0:02:12.3]} 20... Kxg7 {[%clk
0:00:42]} 21. f4 {[%clk 0:02:13]} 21... Rad8 {[%clk 0:00:40.7]} 22. Nb3 {[%clk
0:02:12.2]} 22... Bd3 {[%clk 0:00:24.4]} 23. Bxd3 {[%clk 0:02:05]} 23... Rxd3
{[%clk 0:00:26.3]} 24. Kf2 {[%clk 0:02:06.4]} 24... Red8 {[%clk 0:00:21.2]} 25.
Ke2 {[%clk 0:02:05.2]} 25... Rc3 {[%clk 0:00:18.7]} 26. Rac1 {[%clk 0:02:05.3]}
26... Rxc1 {[%clk 0:00:18.5]} 27. Rxc1 {[%clk 0:02:05.6]} 27... Rd5 {[%clk
0:00:18.4]} 28. Rd1 {[%clk 0:02:04.9]} 28... Rb5 {[%clk 0:00:17.8]} 29. Rd7
{[%clk 0:02:05.5]} 29... Kg8 {[%clk 0:00:15.9]} 30. Rd2 {[%clk 0:02:02.7]} 30...
a5 {[%clk 0:00:14.1]} 31. Nd4 {[%clk 0:02:03.4]} 31... Rc5 {[%clk 0:00:11.7]}
32. Nxc6 {[%clk 0:02:03.5]} 32... Rxc6 {[%clk 0:00:13.6]} 33. Rb2 {[%clk
0:02:00.3]} 33... b6 {[%clk 0:00:10.4]} 34. Kd3 {[%clk 0:02:00.1]} 34... Kf8
{[%clk 0:00:07.6]} 35. Rc2 {[%clk 0:02:01.5]} 35... Rxc2 {[%clk 0:00:05.2]} 36.
Kxc2 {[%clk 0:02:03.4]} 36... b5 {[%clk 0:00:05.2]} 37. Kc3 {[%clk 0:02:03.2]}
37... Ke7 {[%clk 0:00:04.8]} 38. Kd4 {[%clk 0:02:04.1]} 38... Ke6 {[%clk
0:00:03.6]} 39. e4 {[%clk 0:02:03.3]} 1-0

[Event "*** Titled Tuesday 3|2 Blitz"]
[Site "Chess.com"]
[Date "2016.10.04"]
[Round "6"]
[White "GasconJR"]
[Black "Schwarzschidl"]
[Result "0-1"]
[WhiteElo "2274"]
[BlackElo "2340"]
[TimeControl "180+2"]
[EndTime "18:17:58 PDT"]
[Termination "Schwarzschidl won by resignation"]

1. e4 {[%clk 0:03:01.9]} 1... e5 {[%clk 0:03:00.5]} 2. Nf3 {[%clk 0:03:02.5]}
2... Nc6 {[%clk 0:03:02.1]} 3. Bb5 {[%clk 0:03:02.1]} 3... a6 {[%clk 0:03:03.6]}
4. Ba4 {[%clk 0:03:02.9]} 4... Nf6 {[%clk 0:03:05.2]} 5. O-O {[%clk 0:03:04]}
5... b5 {[%clk 0:03:06.8]} 6. Bb3 {[%clk 0:03:03.8]} 6... Bc5 {[%clk 0:03:08.4]}
7. c3 {[%clk 0:03:03.5]} 7... d6 {[%clk 0:03:09]} 8. d4 {[%clk 0:03:04.3]} 8...
Bb6 {[%clk 0:03:09.8]} 9. h3 {[%clk 0:03:05.4]} 9... Bb7 {[%clk 0:03:07.4]} 10.
Bg5 {[%clk 0:03:03.2]} 10... h6 {[%clk 0:03:08]} 11. Bh4 {[%clk 0:03:02.1]}
11... O-O {[%clk 0:03:05.5]} 12. d5 {[%clk 0:02:56.7]} 12... Nb8 {[%clk
0:03:02.7]} 13. Nbd2 {[%clk 0:02:52.2]} 13... Nbd7 {[%clk 0:02:59.6]} 14. Nh2
{[%clk 0:02:44.5]} 14... g5 {[%clk 0:01:59.9]} 15. Bg3 {[%clk 0:02:45.1]} 15...
Re8 {[%clk 0:01:59.8]} 16. Kh1 {[%clk 0:02:45.5]} 16... Nf8 {[%clk 0:02:00.7]}
17. h4 {[%clk 0:02:43.8]} 17... Ng6 {[%clk 0:01:59.1]} 18. hxg5 {[%clk
0:02:44.4]} 18... hxg5 {[%clk 0:02:00.1]} 19. Bc2 {[%clk 0:02:43.8]} 19... Nf4
{[%clk 0:01:53.4]} 20. Ndf3 {[%clk 0:02:44.2]} 20... Nh7 {[%clk 0:01:48.2]} 21.
Ng4 {[%clk 0:02:40.7]} 21... Kg7 {[%clk 0:01:46.6]} 22. Bxf4 {[%clk 0:02:33.9]}
22... gxf4 {[%clk 0:01:37.3]} 23. g3 {[%clk 0:02:34.6]} 23... Bc8 {[%clk
0:01:22.5]} 24. Nh4 {[%clk 0:02:15.2]} 24... Rh8 {[%clk 0:01:12]} 25. Kg2 {[%clk
0:02:14.7]} 25... Qg5 {[%clk 0:01:12]} 26. Nf5+ {[%clk 0:02:10.9]} 26... Bxf5
{[%clk 0:01:09.9]} 27. exf5 {[%clk 0:02:11.2]} 27... fxg3 {[%clk 0:00:59.7]} 28.
f4 {[%clk 0:00:54.6]} 28... exf4 {[%clk 0:00:51.3]} 0-1

[Event "*** Titled Tuesday 3|2 Blitz"]
[Site "Chess.com"]
[Date "2016.10.04"]
[Round "6"]
[White "AdrianaNikolova"]
[Black "FearlessKing64"]
[Result "1-0"]
[WhiteElo "2249"]
[BlackElo "2189"]
[TimeControl "180+2"]
[EndTime "18:17:58 PDT"]
[Termination "AdrianaNikolova won by resignation"]

1. e4 {[%clk 0:03:01.9]} 1... c5 {[%clk 0:02:59.9]} 2. Nf3 {[%clk 0:03:02.6]}
2... d6 {[%clk 0:03:00.9]} 3. d4 {[%clk 0:03:04]} 3... cxd4 {[%clk 0:03:02.3]}
4. Nxd4 {[%clk 0:03:05.9]} 4... Nf6 {[%clk 0:03:03.5]} 5. Nc3 {[%clk 0:03:07.5]}
5... a6 {[%clk 0:03:04.5]} 6. Bg5 {[%clk 0:03:09]} 6... e6 {[%clk 0:03:05.4]} 7.
f4 {[%clk 0:03:10]} 7... Be7 {[%clk 0:03:06.8]} 8. Qf3 {[%clk 0:03:10.4]} 8...
h6 {[%clk 0:03:07.9]} 9. Bxf6 {[%clk 0:03:04.6]} 9... Bxf6 {[%clk 0:03:08.5]}
10. O-O-O {[%clk 0:03:06.5]} 10... Qb6 {[%clk 0:03:09.1]} 11. Nb3 {[%clk
0:02:57.1]} 11... Qc7 {[%clk 0:03:08.9]} 12. Qd3 {[%clk 0:02:46.2]} 12... Be7
{[%clk 0:03:07.1]} 13. f5 {[%clk 0:02:44.5]} 13... Nd7 {[%clk 0:02:58]} 14. Qg3
{[%clk 0:02:31.1]} 14... Ne5 {[%clk 0:02:49.2]} 15. fxe6 {[%clk 0:02:30.5]}
15... fxe6 {[%clk 0:02:49.8]} 16. h4 {[%clk 0:02:24.8]} 16... Bd7 {[%clk
0:02:48.9]} 17. Qxg7 {[%clk 0:02:16.5]} 17... Nf7 {[%clk 0:02:01.2]} 18. Be2
{[%clk 0:02:09.5]} 18... h5 {[%clk 0:01:58.8]} 19. Rhf1 {[%clk 0:02:03.1]} 19...
Rf8 {[%clk 0:01:47.5]} 20. Bxh5 {[%clk 0:02:00.5]} 20... O-O-O {[%clk
0:01:44.1]} 21. Rxf7 {[%clk 0:02:00.3]} 21... Rg8 {[%clk 0:01:42.6]} 22. Qd4
{[%clk 0:01:46.4]} 22... Bxh4 {[%clk 0:01:40.2]} 23. Qxd6 {[%clk 0:01:42.7]}
23... Bg5+ {[%clk 0:01:37.6]} 24. Kb1 {[%clk 0:01:41.5]} 24... Qxd6 {[%clk
0:01:34.5]} 25. Rxd6 {[%clk 0:01:43.4]} 25... Bc6 {[%clk 0:01:33.2]} 26. Rxd8+
{[%clk 0:01:22.4]} 26... Rxd8 {[%clk 0:01:27.3]} 27. Bg4 {[%clk 0:01:22.4]}
27... Kb8 {[%clk 0:01:20.8]} 28. Na5 {[%clk 0:01:17.5]} 28... Be8 {[%clk
0:01:12.1]} 29. Rxb7+ {[%clk 0:01:15.5]} 29... Ka8 {[%clk 0:01:13.5]} 30. Rg7
{[%clk 0:01:15.7]} 30... Bf6 {[%clk 0:01:08.9]} 31. Rg8 {[%clk 0:01:05.4]} 31...
Rb8 {[%clk 0:01:05.3]} 32. Nd1 {[%clk 0:00:52.8]} 32... Rd8 {[%clk 0:00:59.1]}
33. e5 {[%clk 0:00:47]} 33... Be7 {[%clk 0:00:56.9]} 34. Bf3+ {[%clk 0:00:46.3]}
34... Ka7 {[%clk 0:00:56.4]} 35. Nc6+ {[%clk 0:00:44.2]} 35... Bxc6 {[%clk
0:00:56.3]} 36. Rxd8 {[%clk 0:00:46]} 36... Bxd8 {[%clk 0:00:52.8]} 37. Bxc6
{[%clk 0:00:47.4]} 37... Kb6 {[%clk 0:00:54.1]} 38. Bd7 {[%clk 0:00:48.3]} 1-0

[Event "*** Titled Tuesday 3|2 Blitz"]
[Site "Chess.com"]
[Date "2016.10.04"]
[Round "6"]
[White "FearNoEvil12"]
[Black "ka1ser64"]
[Result "0-1"]
[WhiteElo "2005"]
[BlackElo "2234"]
[TimeControl "180+2"]
[EndTime "18:18:05 PDT"]
[Termination "ka1ser64 won by resignation"]

1. e4 {[%clk 0:03:01.9]} 1... e6 {[%clk 0:03:01.1]} 2. d4 {[%clk 0:03:02.4]}
2... d5 {[%clk 0:03:02.7]} 3. Nc3 {[%clk 0:03:03.9]} 3... Nc6 {[%clk 0:03:04.3]}
4. e5 {[%clk 0:03:02.9]} 4... f6 {[%clk 0:03:04.9]} 5. f4 {[%clk 0:03:03.1]}
5... fxe5 {[%clk 0:03:04.5]} 6. dxe5 {[%clk 0:03:04]} 6... Qe7 {[%clk
0:02:56.5]} 7. Nf3 {[%clk 0:03:05]} 7... Qf7 {[%clk 0:02:54.1]} 8. Be3 {[%clk
0:03:03.4]} 8... Be7 {[%clk 0:02:52.4]} 9. Bb5 {[%clk 0:03:03]} 9... Bd7 {[%clk
0:02:52.7]} 10. O-O {[%clk 0:03:02.6]} 10... Nh6 {[%clk 0:02:53.3]} 11. Bxc6
{[%clk 0:02:57]} 11... Bxc6 {[%clk 0:02:54.1]} 12. Nd4 {[%clk 0:02:58.1]} 12...
Bd7 {[%clk 0:02:55.4]} 13. Ndb5 {[%clk 0:02:45.9]} 13... Bd8 {[%clk 0:01:59.2]}
14. f5 {[%clk 0:02:39.6]} 14... Nxf5 {[%clk 0:01:55.8]} 15. Qd2 {[%clk
0:02:33.1]} 15... O-O {[%clk 0:01:51.7]} 16. Nd4 {[%clk 0:02:27.7]} 16... Qg6
{[%clk 0:01:43.4]} 17. Nxf5 {[%clk 0:02:27.5]} 17... Rxf5 {[%clk 0:01:43.6]} 18.
Rxf5 {[%clk 0:02:29]} 18... Qxf5 {[%clk 0:01:44.8]} 19. Rf1 {[%clk 0:02:29.8]}
19... Qxe5 {[%clk 0:01:38]} 20. Bd4 {[%clk 0:02:25.1]} 20... Qg5 {[%clk
0:01:38.8]} 21. Qf2 {[%clk 0:02:25]} 21... Bf6 {[%clk 0:01:09.8]} 22. Bxf6
{[%clk 0:02:16.1]} 22... gxf6 {[%clk 0:01:09.5]} 23. Qxf6 {[%clk 0:02:16.6]}
23... Qxf6 {[%clk 0:01:10.3]} 24. Rxf6 {[%clk 0:02:18.1]} 24... Rf8 {[%clk
0:01:11.4]} 25. Rxf8+ {[%clk 0:02:17.5]} 25... Kxf8 {[%clk 0:01:12.3]} 26. Kf2
{[%clk 0:02:18.5]} 26... Kf7 {[%clk 0:01:12.9]} 27. Ke3 {[%clk 0:02:19.6]} 27...
c5 {[%clk 0:01:11.5]} 28. Ne2 {[%clk 0:02:21.1]} 28... e5 {[%clk 0:01:12.2]} 29.
c3 {[%clk 0:02:22.5]} 29... Bg4 {[%clk 0:01:10.7]} 30. Ng3 {[%clk 0:02:22.4]}
30... b5 {[%clk 0:01:03.1]} 31. h3 {[%clk 0:02:22.4]} 31... Be6 {[%clk
0:01:01.2]} 32. b3 {[%clk 0:02:21.2]} 32... a5 {[%clk 0:00:39]} 33. Ne2 {[%clk
0:02:20.4]} 33... Bf5 {[%clk 0:00:37.3]} 34. a3 {[%clk 0:02:17.1]} 34... Ke6
{[%clk 0:00:35.3]} 35. b4 {[%clk 0:02:17.1]} 35... d4+ {[%clk 0:00:31.4]} 36.
cxd4 {[%clk 0:02:16.9]} 36... cxd4+ {[%clk 0:00:30.1]} 37. Kf3 {[%clk
0:02:08.5]} 37... axb4 {[%clk 0:00:28.9]} 38. axb4 {[%clk 0:02:09.4]} 38... Kd5
{[%clk 0:00:30]} 39. g4 {[%clk 0:02:03.4]} 39... Bd3 {[%clk 0:00:30.7]} 40. Ng3
{[%clk 0:02:03]} 40... e4+ {[%clk 0:00:29.3]} 41. Kf4 {[%clk 0:02:02.7]} 41...
e3 {[%clk 0:00:30.3]} 42. Kf3 {[%clk 0:02:02.8]} 42... Bg6 {[%clk 0:00:24.6]}
43. h4 {[%clk 0:02:03.4]} 43... Kc4 {[%clk 0:00:21.3]} 44. h5 {[%clk 0:02:03.4]}
44... Bd3 {[%clk 0:00:19.9]} 45. g5 {[%clk 0:01:59.6]} 45... Kxb4 {[%clk
0:00:20.1]} 46. g6 {[%clk 0:01:57.4]} 46... hxg6 {[%clk 0:00:21.2]} 47. h6
{[%clk 0:01:57.9]} 47... g5 {[%clk 0:00:22.6]} 48. Ne4 {[%clk 0:01:55.7]} 48...
Bxe4+ {[%clk 0:00:22.6]} 49. Kxe4 {[%clk 0:01:56.5]} 49... e2 {[%clk 0:00:24.1]}
50. h7 {[%clk 0:01:56.3]} 50... e1=Q+ {[%clk 0:00:25.3]} 51. Kxd4 {[%clk
0:01:57.8]} 51... Qe8 {[%clk 0:00:25.8]} 0-1

[Event "*** Titled Tuesday 3|2 Blitz"]
[Site "Chess.com"]
[Date "2016.10.04"]
[Round "6"]
[White "maciek_92"]
[Black "chito89"]
[Result "1-0"]
[WhiteElo "2622"]
[BlackElo "2569"]
[TimeControl "180+2"]
[EndTime "18:18:31 PDT"]
[Termination "maciek_92 won by resignation"]

1. c4 {[%clk 0:03:01.9]} 1... e5 {[%clk 0:02:59.3]} 2. Nc3 {[%clk 0:03:02]} 2...
Nc6 {[%clk 0:03:00.4]} 3. g3 {[%clk 0:03:03.4]} 3... Bc5 {[%clk 0:02:58.2]} 4.
Bg2 {[%clk 0:03:04.4]} 4... d6 {[%clk 0:02:58.5]} 5. e3 {[%clk 0:03:05.9]} 5...
a6 {[%clk 0:02:58.1]} 6. Nge2 {[%clk 0:03:07.3]} 6... Ba7 {[%clk 0:02:59.7]} 7.
d4 {[%clk 0:03:08.6]} 7... Nge7 {[%clk 0:02:58.8]} 8. O-O {[%clk 0:02:57.8]}
8... Bf5 {[%clk 0:02:57]} 9. h3 {[%clk 0:02:57.7]} 9... Qd7 {[%clk 0:02:47.5]}
10. Kh2 {[%clk 0:02:57.6]} 10... Rb8 {[%clk 0:02:41.6]} 11. g4 {[%clk
0:02:40.6]} 11... Bg6 {[%clk 0:02:41.4]} 12. f4 {[%clk 0:02:41.6]} 12... exd4
{[%clk 0:02:40.1]} 13. exd4 {[%clk 0:02:33.7]} 13... f5 {[%clk 0:02:41.2]} 14.
d5 {[%clk 0:02:23.6]} 14... Nd8 {[%clk 0:02:41.1]} 15. Ng3 {[%clk 0:02:23.5]}
15... O-O {[%clk 0:02:40.1]} 16. g5 {[%clk 0:02:23.5]} 16... b5 {[%clk
0:02:35.6]} 17. cxb5 {[%clk 0:02:20.3]} 17... axb5 {[%clk 0:02:36]} 18. b4
{[%clk 0:02:21.9]} 18... Bf7 {[%clk 0:02:27.4]} 19. Bb2 {[%clk 0:02:07.4]} 19...
c5 {[%clk 0:01:52.5]} 20. a4 {[%clk 0:02:07.9]} 20... bxa4 {[%clk 0:01:25.6]}
21. b5 {[%clk 0:02:08.9]} 21... Bb6 {[%clk 0:00:47]} 22. Re1 {[%clk 0:02:00.8]}
22... Nb7 {[%clk 0:00:44.5]} 23. Nxa4 {[%clk 0:01:30.9]} 23... Ba5 {[%clk
0:00:45.6]} 24. Rxe7 {[%clk 0:01:25.7]} 24... Qxe7 {[%clk 0:00:44.7]} 25. Nxf5
{[%clk 0:01:27.3]} 25... Qd7 {[%clk 0:00:37.1]} 26. Nxg7 {[%clk 0:01:24.3]}
26... Bb4 {[%clk 0:00:20]} 27. f5 {[%clk 0:01:18.2]} 27... Na5 {[%clk
0:00:18.7]} 28. Qg4 {[%clk 0:01:11.9]} 28... Nb3 {[%clk 0:00:15.1]} 29. Rd1
{[%clk 0:01:04]} 29... Qxb5 {[%clk 0:00:14.1]} 30. g6 {[%clk 0:01:03.2]} 30...
hxg6 {[%clk 0:00:10.3]} 31. fxg6 {[%clk 0:01:01.5]} 31... Be8 {[%clk 0:00:08.4]}
32. Qh5 {[%clk 0:00:34.6]} 1-0

[Event "*** Titled Tuesday 3|2 Blitz"]
[Site "Chess.com"]
[Date "2016.10.04"]
[Round "6"]
[White "Noukii"]
[Black "Kawhi_Leonard2"]
[Result "1-0"]
[WhiteElo "2591"]
[BlackElo "2019"]
[TimeControl "180+2"]
[EndTime "18:18:36 PDT"]
[Termination "Noukii won on time"]

1. d4 {[%clk 0:03:01.9]} 1... Nf6 {[%clk 0:03:00.2]} 2. c4 {[%clk 0:03:01.9]}
2... e6 {[%clk 0:03:01.2]} 3. Nc3 {[%clk 0:03:01.9]} 3... Bb4 {[%clk 0:03:01.6]}
4. Nf3 {[%clk 0:03:01.6]} 4... O-O {[%clk 0:03:00.5]} 5. Bg5 {[%clk 0:03:02.2]}
5... h6 {[%clk 0:02:58.8]} 6. Bh4 {[%clk 0:03:00]} 6... b6 {[%clk 0:02:54]} 7.
e3 {[%clk 0:03:01]} 7... Bb7 {[%clk 0:02:53.2]} 8. Bd3 {[%clk 0:03:02.5]} 8...
d6 {[%clk 0:02:49.1]} 9. O-O {[%clk 0:03:03.4]} 9... Bxc3 {[%clk 0:02:45]} 10.
bxc3 {[%clk 0:03:05.3]} 10... Nbd7 {[%clk 0:02:40.7]} 11. Nd2 {[%clk 0:03:06.6]}
11... e5 {[%clk 0:02:32.9]} 12. Qc2 {[%clk 0:03:04.4]} 12... Re8 {[%clk
0:02:31.1]} 13. e4 {[%clk 0:03:00.1]} 13... g5 {[%clk 0:02:26.6]} 14. Bg3 {[%clk
0:03:00.5]} 14... Nh5 {[%clk 0:02:27.1]} 15. Rfe1 {[%clk 0:03:02.1]} 15... Qf6
{[%clk 0:02:26.1]} 16. Nf1 {[%clk 0:02:58.9]} 16... exd4 {[%clk 0:02:20.8]} 17.
f3 {[%clk 0:02:49.3]} 17... dxc3 {[%clk 0:02:17.6]} 18. Ne3 {[%clk 0:02:50.8]}
18... Nc5 {[%clk 0:02:03.6]} 19. Bf1 {[%clk 0:02:51.3]} 19... Nf4 {[%clk
0:01:58.6]} 20. Rad1 {[%clk 0:02:37.1]} 20... h5 {[%clk 0:01:56.3]} 21. Nf5
{[%clk 0:02:32.4]} 21... Rad8 {[%clk 0:01:13.6]} 22. Bf2 {[%clk 0:02:27.5]}
22... g4 {[%clk 0:01:07.4]} 23. Bh4 {[%clk 0:02:22.4]} 23... Qe5 {[%clk
0:00:55.4]} 24. Bg3 {[%clk 0:02:11.3]} 24... Nce6 {[%clk 0:00:52.4]} 25. Qc1
{[%clk 0:02:03.9]} 25... Qc5+ {[%clk 0:00:33.6]} 26. Kh1 {[%clk 0:02:00.8]}
26... Ng6 {[%clk 0:00:28.9]} 27. Qxc3 {[%clk 0:01:55.3]} 27... Kh7 {[%clk
0:00:18.1]} 28. Qf6 {[%clk 0:01:52.6]} 28... Rd7 {[%clk 0:00:15.9]} 29. Bd3
{[%clk 0:01:35.5]} 29... Rg8 {[%clk 0:00:10.5]} 30. Rf1 {[%clk 0:01:26.7]} 30...
gxf3 {[%clk 0:00:10.6]} 31. gxf3 {[%clk 0:01:25.5]} 31... b5 {[%clk 0:00:06.9]}
32. Rc1 {[%clk 0:01:07.8]} 32... b4 {[%clk 0:00:07]} 33. Rg1 {[%clk 0:01:06.1]}
33... a5 {[%clk 0:00:07.7]} 34. Rg2 {[%clk 0:01:05]} 34... a4 {[%clk 0:00:08.3]}
35. Rcg1 {[%clk 0:01:05.2]} 35... b3 {[%clk 0:00:09.6]} 36. Bf2 {[%clk
0:01:04.8]} 36... Qe5 {[%clk 0:00:08.9]} 37. Qxe5 {[%clk 0:01:06]} 37... dxe5
{[%clk 0:00:09.8]} 38. Bb1 {[%clk 0:01:07.1]} 38... Nef4 {[%clk 0:00:08.2]} 39.
Rg5 {[%clk 0:01:07.5]} 39... f6 {[%clk 0:00:03.4]} 40. R5g3 {[%clk 0:01:06.9]}
1-0

[Event "*** Titled Tuesday 3|2 Blitz"]
[Site "Chess.com"]
[Date "2016.10.04"]
[Round "6"]
[White "daro94"]
[Black "dretch"]
[Result "1/2-1/2"]
[WhiteElo "2680"]
[BlackElo "2660"]
[TimeControl "180+2"]
[EndTime "18:18:37 PDT"]
[Termination "Game drawn by agreement"]

1. d4 {[%clk 0:02:59.4]} 1... d5 {[%clk 0:03:01.1]} 2. Nf3 {[%clk 0:02:59.5]}
2... Nf6 {[%clk 0:03:02.3]} 3. c4 {[%clk 0:03:01]} 3... c6 {[%clk 0:03:03.5]} 4.
e3 {[%clk 0:03:00.7]} 4... Bg4 {[%clk 0:03:02.5]} 5. Qb3 {[%clk 0:02:59.3]} 5...
Qb6 {[%clk 0:03:02.9]} 6. Nc3 {[%clk 0:02:54.3]} 6... e6 {[%clk 0:03:01.9]} 7.
Nh4 {[%clk 0:02:53.8]} 7... Bh5 {[%clk 0:03:01.2]} 8. h3 {[%clk 0:02:55]} 8...
Na6 {[%clk 0:03:01.9]} 9. g4 {[%clk 0:02:21.8]} 9... Bg6 {[%clk 0:02:58.4]} 10.
Nxg6 {[%clk 0:02:20.8]} 10... hxg6 {[%clk 0:02:58.7]} 11. Bg2 {[%clk 0:02:22.3]}
11... Qb4 {[%clk 0:02:59.2]} 12. cxd5 {[%clk 0:01:45.2]} 12... Qxb3 {[%clk
0:02:59.5]} 13. axb3 {[%clk 0:01:47]} 13... Nb4 {[%clk 0:03:00.8]} 14. Ke2
{[%clk 0:01:41.6]} 14... Nbxd5 {[%clk 0:02:54.6]} 15. Bd2 {[%clk 0:01:41.3]}
15... Be7 {[%clk 0:02:53.4]} 16. g5 {[%clk 0:01:37.2]} 16... Nd7 {[%clk
0:02:52.5]} 17. f4 {[%clk 0:01:34.6]} 17... a6 {[%clk 0:02:50.9]} 18. h4 {[%clk
0:01:30.9]} 18... f6 {[%clk 0:02:48.9]} 19. Bh3 {[%clk 0:01:21.2]} 19... Kf7
{[%clk 0:02:49.2]} 20. Nxd5 {[%clk 0:01:18.1]} 20... cxd5 {[%clk 0:02:48.5]} 21.
Bg4 {[%clk 0:01:16.8]} 21... f5 {[%clk 0:02:47.1]} 22. Bf3 {[%clk 0:01:18]}
22... Nb8 {[%clk 0:02:46.3]} 23. h5 {[%clk 0:01:02.9]} 23... Nc6 {[%clk
0:02:46.5]} 24. hxg6+ {[%clk 0:00:51.2]} 24... Kxg6 {[%clk 0:02:46.2]} 25. Bc3
{[%clk 0:00:52.2]} 25... Kf7 {[%clk 0:02:42]} 26. Kd2 {[%clk 0:00:50.5]} 26...
g6 {[%clk 0:02:41.7]} 27. Ke2 {[%clk 0:00:51.4]} 27... Bd6 {[%clk 0:02:41.9]}
28. Rxh8 {[%clk 0:00:45.2]} 28... Rxh8 {[%clk 0:02:42.3]} 29. Rh1 {[%clk
0:00:47.1]} 29... Rxh1 {[%clk 0:02:42.1]} 30. Bxh1 {[%clk 0:00:49]} 30... Ke7
{[%clk 0:02:40.9]} 31. Kd3 {[%clk 0:00:48.7]} 31... Kd7 {[%clk 0:02:42.1]} 32.
Bf3 {[%clk 0:00:49.9]} 32... Kc7 {[%clk 0:02:42.9]} 33. Be2 {[%clk 0:00:48.1]}
33... Kb6 {[%clk 0:02:42.7]} 34. Kd2 {[%clk 0:00:48.8]} 34... Na7 {[%clk
0:02:42.4]} 35. Kc2 {[%clk 0:00:48.4]} 35... Nb5 {[%clk 0:02:43]} 36. Bf1 {[%clk
0:00:47.7]} 36... Na7 {[%clk 0:02:43]} 37. Be2 {[%clk 0:00:48.8]} 37... Nc6
{[%clk 0:02:44.2]} 38. Bf1 {[%clk 0:00:49.1]} 38... Bb4 {[%clk 0:02:45.5]} 39.
Be2 {[%clk 0:00:48.3]} 39... Ka5 {[%clk 0:02:46]} 40. Bf1 {[%clk 0:00:46.6]}
40... Ne7 {[%clk 0:02:46]} 41. Be2 {[%clk 0:00:44]} 41... Nc8 {[%clk 0:02:46.6]}
42. Bf1 {[%clk 0:00:43.5]} 42... Nd6 {[%clk 0:02:47.5]} 43. Be2 {[%clk
0:00:44.9]} 43... Ne4 {[%clk 0:02:47.9]} 44. Bf1 {[%clk 0:00:43.7]} 44... Nd6
{[%clk 0:02:43.8]} 45. Be2 {[%clk 0:00:45]} 45... Nc8 {[%clk 0:02:44.7]} 46. Bf1
{[%clk 0:00:46.2]} 46... Ne7 {[%clk 0:02:45.9]} 47. Be2 {[%clk 0:00:47.6]} 47...
Nc6 {[%clk 0:02:45.9]} 48. Bf1 {[%clk 0:00:49]} 48... Nb8 {[%clk 0:02:47.1]} 49.
Be2 {[%clk 0:00:49.1]} 49... Nd7 {[%clk 0:02:46.5]} 50. Bf1 {[%clk 0:00:50.5]}
50... Nb6 {[%clk 0:02:47.9]} 51. Be2 {[%clk 0:00:49.6]} 51... Nc8 {[%clk
0:02:49]} 52. Bf1 {[%clk 0:00:50.9]} 52... Nd6 {[%clk 0:02:50.2]} 53. Be2 {[%clk
0:00:52]} 53... Ne4 {[%clk 0:02:51.1]} 54. Bf1 {[%clk 0:00:53.2]} 54... Nf2
{[%clk 0:02:46.8]} 55. Be2 {[%clk 0:00:51.5]} 55... b5 {[%clk 0:02:37.6]} 56.
Bf3 {[%clk 0:00:39.4]} 56... Ne4 {[%clk 0:02:33.8]} 57. Bxe4 {[%clk 0:00:24.4]}
57... fxe4 {[%clk 0:02:34.7]} 58. Kd2 {[%clk 0:00:25.9]} 58... Bxc3+ {[%clk
0:02:36]} 59. Kxc3 {[%clk 0:00:21.4]} 59... b4+ {[%clk 0:02:34.1]} 60. Kc2
{[%clk 0:00:21.3]} 60... Kb5 {[%clk 0:02:35.2]} 61. Kd2 {[%clk 0:00:18.6]} 61...
a5 {[%clk 0:02:35.6]} 62. Kc1 {[%clk 0:00:19.3]} 62... a4 {[%clk 0:02:29.7]} 63.
bxa4+ {[%clk 0:00:13.2]} 63... Kxa4 {[%clk 0:02:31.6]} 64. Kc2 {[%clk
0:00:14.7]} 64... Ka5 {[%clk 0:02:33]} 65. b3 {[%clk 0:00:15.3]} 65... Kb5
{[%clk 0:02:33.5]} 66. Kd2 {[%clk 0:00:16.8]} 1/2-1/2